bitfinex-derivatives/quotes_BTCF0:USTF0_20241023
["timestamp","ask_amount","ask_price","bid_price","bid_amount"]
[1729701256252,0.24896454,66121.0,66109.0,0.05982492]
[1729701256448,0.26,66133.0,66119.0,0.26]
[1729701256656,0.26,66133.0,66121.0,0.075675]
[1729701256657,0.075673,66123.0,66121.0,0.075675]
[1729701256949,0.075673,66123.0,66110.0,0.07478115]
[1729701256950,0.26,66128.0,66122.0,0.075673]
[1729701257653,0.26,66128.0,66124.0,0.07567]
[1729701257857,0.26,66128.0,66115.0,0.075681]
[1729701258060,0.26,66128.0,66114.0,0.31982492]
[1729701258243,0.00226873,66132.0,66124.0,0.26]
[1729701258446,0.00226873,66132.0,66125.0,0.07567]
[1729701258447,0.07793173,66132.0,66125.0,0.07567]
[1729701258652,0.07793173,66132.0,66124.0,0.26]
[1729701258957,0.00226873,66132.0,66124.0,0.07567]
[1729701259155,0.075667,66128.0,66119.0,0.26]
[1729701259456,0.26,66131.0,66127.0,0.075667]
[1729701259654,0.26,66131.0,66128.0,0.075666]
[1729701259853,0.335664,66131.0,66128.0,0.075666]
[1729701260259,0.335664,66131.0,66119.0,0.31982492]
[1729701260260,0.075667,66128.0,66119.0,0.26]
[1729701260956,0.26,66131.0,66128.0,0.075666]
[1729701261253,0.335663,66131.0,66119.0,0.26]
[1729701261459,0.075665,66130.0,66127.0,0.075667]
[1729701261649,0.075667,66128.0,66127.0,0.075667]
[1729701263353,0.075668,66127.0,66123.0,0.075672]
[1729701263552,0.26,66126.0,66122.0,0.075672]
[1729701263755,0.075671,66124.0,66122.0,0.075672]
[1729701264059,0.075673,66122.0,66120.0,0.075675]
[1729701264248,0.075673,66122.0,66121.0,0.075675]
[1729701264969,0.26,66126.0,66114.0,0.26]
[1729701265159,0.335669,66126.0,66125.0,0.07567]
[1729701265360,0.26,66126.0,66107.0,0.0382]
[1729701265658,0.33568,66117.0,66116.0,0.075681]
[1729701265853,0.07568,66117.0,66116.0,0.075681]
[1729701266248,0.10492744,66117.0,66116.0,0.075681]
[1729701266457,0.10492752,66117.0,66116.0,0.075681]
[1729701266758,0.1049273,66117.0,66116.0,0.075681]
[1729701267166,0.02924749,66117.0,66108.0,0.07569]
[1729701267359,0.114872,66125.0,66124.0,0.075672]
[1729701267555,0.14411829,66125.0,66124.0,0.075672]
[1729701267765,0.075676,66121.0,66119.0,0.075677]
[1729701267965,0.02924629,66120.0,66119.0,0.075677]
[1729701268963,0.02924629,66120.0,66119.0,0.075678]
[1729701269368,0.075679,66118.0,66116.0,0.075681]
[1729701269669,0.06632388,66117.0,66116.0,0.075681]
[1729701271264,0.335677,66120.0,66116.0,0.20318356]
[1729701271464,0.335677,66120.0,66118.0,0.075678]
[1729701271759,0.335677,66120.0,66119.0,0.11344618]
[1729701272260,0.245677,66120.0,66119.0,0.11344618]
[1729701273158,0.245677,66120.0,66119.0,0.24913408]
[1729701274256,0.245677,66120.0,66119.0,0.11344618]
[1729701274560,0.075698,66101.0,66100.0,0.10696193]
[1729701274761,0.245698,66101.0,66100.0,0.13869145]
[1729701275357,1.22384,66101.0,66086.0,0.10469361]
[1729701275557,0.17,66094.0,66087.0,0.13541177]
[1729701275758,0.17,66094.0,66088.0,0.13541177]
[1729701275759,0.075712,66089.0,66088.0,0.13541177]
[1729701275972,0.17,66097.0,66088.0,0.13541177]
[1729701276156,0.17,66097.0,66090.0,0.24571]
[1729701276363,0.07571,66091.0,66089.0,0.075712]
[1729701276666,0.075708,66093.0,66090.0,0.21084417]
[1729701276866,0.075708,66093.0,66090.0,0.075711]
[1729701277060,0.26,66099.0,66090.0,0.075711]
[1729701277255,0.075702,66098.0,66097.0,0.07544265]
[1729701277463,0.26,66099.0,66091.0,0.075709]
[1729701277665,0.075702,66098.0,66097.0,0.07544207]
[1729701278058,0.075702,66098.0,66096.0,0.07544207]
[1729701278265,0.26,66097.0,66082.0,0.26]
[1729701278471,0.26,66091.0,66085.0,0.075716]
[1729701278673,0.26,66091.0,66077.0,0.26]
[1729701278972,0.26,66095.0,66081.0,0.26]
[1729701279360,0.26,66095.0,66087.0,0.075714]
[1729701279561,0.26,66095.0,66081.0,0.26]
[1729701279762,0.075709,66092.0,66081.0,0.26]
[1729701279963,0.26,66095.0,66081.0,0.26]
[1729701280358,0.07571,66091.0,66081.0,0.26]
[1729701280658,0.075711,66090.0,66085.0,0.075715]
[1729701280968,0.075711,66090.0,66081.0,0.26]
[1729701281361,0.075711,66090.0,66088.0,0.075713]
[1729701281565,0.075711,66090.0,66086.0,0.075715]
[1729701281770,0.075713,66088.0,66086.0,0.075715]
[1729701282068,0.075714,66087.0,66086.0,0.075715]
[1729701282270,0.26,66095.0,66083.0,0.075719]
[1729701282271,0.075716,66086.0,66083.0,0.075719]
[1729701282472,0.26,66085.0,66077.0,0.075725]
[1729701282767,0.26,66079.0,66077.0,0.075725]
[1729701282971,0.26,66079.0,66074.0,0.0476]
[1729701283173,0.26,66083.0,66074.0,0.07118181]
[1729701283769,0.26,66083.0,66081.0,0.075721]
[1729701283970,0.26,66088.0,66074.0,0.33118181]
[1729701284175,0.07571,66091.0,66078.0,0.26]
[1729701284367,0.07571,66091.0,66074.0,0.14691081]
[1729701284368,0.07571,66091.0,66083.0,0.26]
[1729701284669,0.26,66084.0,66074.0,0.07118181]
[1729701284869,0.075719,66083.0,66074.0,0.07118181]
[1729701285070,0.075719,66083.0,66077.0,0.075725]
[1729701285271,0.07572,66082.0,66077.0,0.075725]
[1729701285668,0.07572,66082.0,66078.0,0.075724]
[1729701286063,0.07572,66082.0,66074.0,0.07118181]
[1729701286260,0.07572,66082.0,66080.0,0.07544207]
[1729701286471,0.26,66084.0,66080.0,0.07544207]
[1729701286665,0.075716,66086.0,66083.0,0.075719]
[1729701286867,0.075717,66085.0,66083.0,0.075719]
[1729701287067,0.075718,66084.0,66083.0,0.075719]
[1729701287263,0.07572,66082.0,66080.0,0.07544207]
[1729701287469,0.0997631,66086.0,66080.0,0.07544207]
[1729701287664,0.075718,66084.0,66083.0,0.075718]
[1729701287880,0.075718,66084.0,66080.0,0.07544207]
[1729701288175,0.335714,66087.0,66084.0,0.075717]
[1729701288366,0.075714,66087.0,66086.0,0.06012022]
[1729701288980,0.075714,66087.0,66085.0,0.06012022]
[1729701289184,0.075714,66087.0,66085.0,0.13583622]
[1729701289479,0.09937334,66087.0,66085.0,0.13583622]
[1729701289676,0.09937334,66087.0,66085.0,0.06012022]
[1729701289677,0.02365934,66087.0,66085.0,0.06012022]
[1729701289869,0.075712,66089.0,66085.0,0.06012022]
[1729701290066,0.26,66092.0,66089.0,0.075712]
[1729701290265,0.26,66092.0,66087.0,0.06012022]
[1729701290266,0.335709,66092.0,66091.0,0.04509023]
[1729701290468,0.26,66092.0,66091.0,0.04509425]
[1729701290661,0.335708,66092.0,66091.0,0.04509425]
[1729701291066,0.075711,66091.0,66089.0,0.06012022]
[1729701291269,0.075711,66090.0,66089.0,0.06012022]
[1729701291468,0.02369991,66092.0,66089.0,0.04510364]
[1729701291671,0.075711,66090.0,66089.0,0.04510364]
[1729701291867,0.075712,66089.0,66088.0,0.04510364]
[1729701292071,0.335712,66089.0,66088.0,0.04510364]
[1729701292270,0.075673,66123.0,66103.0,0.075696]
[1729701292468,0.075681,66116.0,66107.0,0.04510075]
[1729701292669,0.26,66113.0,66107.0,0.04510075]
[1729701292865,0.216982,66115.0,66094.0,0.26226971]
[1729701292866,0.26,66108.0,66105.0,0.04510075]
[1729701293086,0.26,66106.0,66105.0,0.04510075]
[1729701293387,0.335692,66106.0,66094.0,0.00226971]
[1729701293570,0.26,66106.0,66094.0,0.07797571]
[1729701293769,0.26,66106.0,66094.0,0.00226971]
[1729701293969,0.075699,66101.0,66097.0,0.075703]
[1729701294182,0.26,66106.0,66094.0,0.26226971]
[1729701294388,0.38892,66114.0,66102.0,0.26]
[1729701294684,0.075684,66113.0,66105.0,0.075694]
[1729701294982,0.075689,66109.0,66105.0,0.075694]
[1729701296674,0.12892,66113.0,66101.0,0.075698]
[1729701296877,0.12892,66113.0,66095.0,0.0472]
[1729701296878,0.26,66105.0,66095.0,0.0472]
[1729701297170,0.075706,66094.0,66091.0,0.07797859]
[1729701297483,0.12892,66100.0,66091.0,0.00226959]
[1729701297674,0.075703,66098.0,66091.0,0.00226959]
[1729701297875,0.075703,66098.0,66096.0,0.075704]
[1729701299778,0.12892,66103.0,66094.0,0.17]
[1729701299979,0.12892,66103.0,66098.0,0.075701]
[1729701300286,0.17,66111.0,66102.0,0.17]
[1729701300481,0.15817811,66110.0,66102.0,0.17]
[1729701300685,0.02359161,66111.0,66098.0,0.075702]
[1729701300875,0.07795578,66112.0,66109.0,0.245689]
[1729701301076,0.075687,66111.0,66109.0,0.075689]
[1729701301389,0.00226978,66112.0,66107.0,0.17]
[1729701301390,0.16713854,66110.0,66107.0,0.17]
[1729701301582,0.16713854,66109.0,66107.0,0.17]
[1729701301886,0.36275837,66108.0,66107.0,0.245691]
[1729701302396,0.36285546,66108.0,66107.0,0.245691]
[1729701302887,0.16713854,66108.0,66107.0,0.245691]
[1729701305183,0.11282242,66108.0,66107.0,0.245691]
[1729701305893,0.18851242,66108.0,66107.0,0.245691]
[1729701306888,0.11282242,66108.0,66107.0,0.245691]
[1729701308385,0.00226978,66112.0,66108.0,0.07569]
[1729701308588,0.0667,66130.0,66108.0,0.4538]
[1729701308790,0.0667,66130.0,66110.0,0.075688]
[1729701308791,0.0663315,66129.0,66110.0,0.075688]
[1729701308994,0.075676,66121.0,66119.0,0.075677]
[1729701309195,0.075676,66121.0,66112.0,0.0669]
[1729701309391,0.075676,66121.0,66120.0,0.245676]
[1729701309582,0.16636446,66130.0,66116.0,0.24568]
[1729701309583,0.17,66124.0,66116.0,0.24568]
[1729701309784,0.02924661,66123.0,66116.0,0.07568]
[1729701309983,0.17,66121.0,66116.0,0.07568]
[1729701310289,0.075684,66113.0,66112.0,0.0669]
[1729701310676,0.075681,66116.0,66115.0,0.075682]
[1729701310881,0.075681,66116.0,66115.0,0.17]
[1729701311291,0.17,66120.0,66112.0,0.312586]
[1729701311292,0.075684,66113.0,66112.0,0.312586]
[1729701311690,0.075681,66117.0,66116.0,0.075681]
[1729701311890,0.075681,66117.0,66116.0,0.17]
[1729701312991,0.075684,66113.0,66112.0,0.312585]
[1729701313495,0.075681,66116.0,66115.0,0.075681]
[1729701313690,0.075678,66120.0,66119.0,0.075678]
[1729701313892,0.075678,66120.0,66119.0,0.245678]
[1729701314396,0.075673,66124.0,66123.0,0.075673]
[1729701314585,0.075673,66124.0,66123.0,0.245673]
[1729701314986,0.075673,66123.0,66122.0,0.075674]
[1729701315385,0.075675,66121.0,66120.0,0.17]
[1729701315992,0.075679,66118.0,66116.0,0.17]
[1729701316189,0.075679,66118.0,66117.0,0.07568]
[1729701316391,0.14200344,66118.0,66117.0,0.07568]
[1729701316591,0.06632444,66118.0,66117.0,0.07568]
[1729701316796,0.06632444,66118.0,66116.0,0.17]
[1729701316797,0.30530095,66127.0,66119.0,0.075677]
[1729701316999,0.11279501,66126.0,66120.0,0.17]
[1729701317294,0.24809596,66126.0,66120.0,0.17]
[1729701317501,0.11279501,66125.0,66120.0,0.17]
[1729701317896,0.075675,66121.0,66120.0,0.17]
[1729701318098,0.14199736,66121.0,66120.0,0.17]
[1729701319291,0.07568,66117.0,66116.0,0.17]
[1729701319601,0.07568,66117.0,66112.0,0.142585]
[1729701319602,0.06632236,66117.0,66113.0,0.17]
[1729701319789,0.075684,66114.0,66113.0,0.17]
[1729701319996,0.14200636,66114.0,66113.0,0.245684]
[1729701321208,0.14200646,66114.0,66113.0,0.245684]
[1729701321497,0.10493004,66114.0,66113.0,0.245684]
[1729701321701,0.14200659,66114.0,66113.0,0.245684]
[1729701322106,0.02924604,66114.0,66113.0,0.245684]
[1729701322290,0.07568,66118.0,66117.0,0.07568]
[1729701322497,0.14200279,66118.0,66117.0,0.07568]
[1729701323404,0.24277901,66118.0,66116.0,0.07901186]
[1729701323594,0.075683,66115.0,66114.0,0.075681]
[1729701323798,0.24278201,66115.0,66114.0,0.245681]
[1729701324295,0.16709901,66115.0,66114.0,0.245681]
[1729701326305,0.24278101,66115.0,66114.0,0.245681]
[1729701326608,0.16709901,66115.0,66114.0,0.245681]
[1729701331605,0.075678,66120.0,66119.0,0.075677]
[1729701331809,0.1049248,66120.0,66119.0,0.245677]
[1729701332610,0.075678,66120.0,66119.0,0.245677]
[1729701335014,0.17,66122.0,66114.0,0.00332817]
[1729701335311,0.075682,66115.0,66114.0,0.07901117]
[1729701338398,0.0654,66124.0,66114.0,0.00332817]
[1729701338600,0.21352819,66123.0,66122.0,0.075674]
[1729701338808,0.21352819,66123.0,66120.0,0.17]
[1729701339007,0.075674,66123.0,66122.0,0.075674]
[1729701339309,0.21352972,66123.0,66122.0,0.075674]
[1729701340607,0.075675,66121.0,66120.0,0.17]
[1729701340806,0.075675,66121.0,66120.0,0.245676]
[1729701340807,0.21352984,66121.0,66120.0,0.245676]
[1729701341814,0.13785484,66121.0,66120.0,0.075676]
[1729701342113,0.13785484,66121.0,66120.0,0.245676]
[1729701343404,0.075679,66119.0,66118.0,0.075678]
[1729701343616,0.13785484,66119.0,66118.0,0.075678]
[1729701343915,0.13785484,66119.0,66118.0,0.529398]
[1729701344818,0.02924137,66119.0,66118.0,0.36275856]
[1729701345005,0.02924137,66119.0,66118.0,0.53275856]
[1729701345512,0.075671,66125.0,66118.0,0.53275856]
[1729701345810,0.075671,66125.0,66124.0,0.245672]
[1729701346820,0.075664,66132.0,66131.0,0.075664]
[1729701347110,0.13562359,66149.0,66139.0,0.075654]
[1729701347111,0.075656,66140.0,66139.0,0.075654]
[1729701347310,0.24229644,66140.0,66139.0,0.245654]
[1729701349621,0.16664044,66140.0,66139.0,0.245654]
[1729701351115,0.24229444,66140.0,66139.0,0.245654]
[1729701352718,0.075657,66137.0,66136.0,0.245658]
[1729701352921,0.16664044,66133.0,66131.0,0.01874988]
[1729701353224,0.07567,66126.0,66125.0,0.00226778]
[1729701353430,0.24231044,66126.0,66125.0,0.00226778]
[1729701353613,0.38014501,66126.0,66125.0,0.00226778]
[1729701354424,0.38014501,66126.0,66122.0,0.01912933]
[1729701354425,0.30447501,66126.0,66122.0,0.17]
[1729701354612,0.24231344,66123.0,66122.0,0.17]
[1729701354813,0.38014801,66123.0,66122.0,0.17]
[1729701355424,0.57555882,66123.0,66122.0,0.17]
[1729701356019,0.57554768,66123.0,66122.0,0.245674]
[1729701356230,0.49987468,66123.0,66122.0,0.245674]
[1729701356416,0.30447501,66123.0,66122.0,0.245674]
[1729701356820,0.49982737,66123.0,66122.0,0.245674]
[1729701357219,0.30447501,66123.0,66122.0,0.245674]
[1729701357423,0.13783457,66123.0,66122.0,0.245674]
[1729701358614,0.0835352,66123.0,66122.0,0.245674]
[1729701359309,0.1378313,66123.0,66122.0,0.245674]
[1729701359522,0.0835352,66123.0,66122.0,0.245674]
[1729701360727,0.1592082,66123.0,66122.0,0.245674]
[1729701361116,0.2135043,66123.0,66122.0,0.245674]
[1729701361620,0.19535236,66127.0,66126.0,0.07567]
[1729701361922,0.19535236,66127.0,66126.0,0.36103175]
[1729701363325,0.27102036,66127.0,66126.0,0.36103175]
[1729701364117,0.19535236,66127.0,66126.0,0.36103175]
[1729701364321,0.19535236,66127.0,66126.0,0.45158823]
[1729701364615,0.19535236,66127.0,66126.0,0.3804976]
[1729701364924,0.19535236,66127.0,66126.0,0.47105996]
[1729701365228,0.19535236,66127.0,66126.0,0.52084683]
[1729701365419,0.19535236,66127.0,66126.0,0.3804976]
[1729701366423,0.19535236,66127.0,66126.0,0.26513585]
[1729701366629,0.19535236,66127.0,66126.0,0.38048852]
[1729701366819,0.19535236,66127.0,66126.0,0.52089226]
[1729701367824,0.19535236,66127.0,66126.0,0.38048852]
[1729701368021,0.1561112,66127.0,66126.0,0.64106949]
[1729701368212,0.1561112,66127.0,66126.0,1.00416852]
[1729701368625,0.1561112,66127.0,66126.0,0.83416852]
[1729701368826,0.1561112,66127.0,66126.0,1.00416852]
[1729701369023,0.1561112,66127.0,66126.0,0.83416852]
[1729701369420,0.1561112,66127.0,66126.0,1.00416852]
[1729701369629,0.136847,66146.0,66145.0,0.075648]
[1729701369824,0.0612,66146.0,66145.0,0.245648]
[1729701370021,0.16664044,66146.0,66145.0,0.415648]
[1729701370218,0.16664044,66146.0,66145.0,0.245648]
[1729701373525,0.0613,66151.0,66150.0,0.075642]
[1729701373829,0.22794044,66151.0,66150.0,0.415642]
[1729701374027,0.22794044,66151.0,66150.0,0.245642]
[1729701374436,0.22794044,66151.0,66150.0,0.415642]
[1729701374633,0.075629,66163.0,66162.0,0.075626]
[1729701374832,0.075629,66163.0,66162.0,0.17]
[1729701375034,0.33664044,66163.0,66150.0,0.01877952]
[1729701375337,0.075644,66149.0,66148.0,0.075642]
[1729701375839,0.24228444,66149.0,66148.0,0.075642]
[1729701376130,0.16664044,66149.0,66148.0,0.245642]
[1729701376331,0.24228344,66149.0,66148.0,0.245642]
[1729701377032,0.24228344,66149.0,66148.0,0.26456475]
[1729701377033,0.27933995,66149.0,66148.0,0.26456475]
[1729701377227,0.27933995,66149.0,66148.0,0.01892275]
[1729701377427,0.075647,66146.0,66145.0,0.245648]
[1729701377630,0.16664044,66146.0,66145.0,0.245648]
[1729701378630,0.03705651,66149.0,66145.0,0.245648]
[1729701378835,0.03705651,66149.0,66148.0,0.245644]
[1729701379539,0.03705651,66149.0,66148.0,0.415644]
[1729701379725,0.15025595,66160.0,66153.0,0.075638]
[1729701379923,0.31689639,66160.0,66159.0,0.245632]
[1729701380128,0.15025595,66160.0,66159.0,0.075632]
[1729701380335,0.39252739,66160.0,66159.0,0.075632]
[1729701380641,0.31689639,66160.0,66159.0,0.245632]
[1729701381033,0.15025595,66160.0,66159.0,0.699072]
[1729701381836,0.15025595,66160.0,66159.0,0.7180297]
[1729701382049,0.0621,66166.0,66165.0,0.075625]
[1729701382239,0.0621,66166.0,66165.0,0.245625]
[1729701382534,0.0621,66166.0,66165.0,0.075625]
[1729701383133,0.22874044,66166.0,66165.0,0.075625]
[1729701383436,0.0621,66166.0,66165.0,0.075625]
[1729701386538,0.0615,66169.0,66165.0,0.075625]
[1729701386740,0.22814044,66169.0,66168.0,0.245621]
[1729701387245,0.30376044,66169.0,66168.0,0.245621]
[1729701388333,0.22814044,66169.0,66168.0,0.245621]
[1729701388539,0.30376044,66169.0,66168.0,0.245621]
[1729701389635,0.22814044,66169.0,66168.0,0.245621]
[1729701390348,0.30376044,66169.0,66168.0,0.245621]
[1729701390554,0.075621,66168.0,66165.0,0.245624]
[1729701390752,0.33664044,66166.0,66157.0,0.17]
[1729701390938,0.13712,66169.0,66152.0,0.07564]
[1729701390939,0.07564,66153.0,66152.0,0.07564]
[1729701391139,0.07564,66153.0,66151.0,0.02176518]
[1729701391140,0.24228044,66152.0,66151.0,0.02176518]
[1729701391437,0.24228044,66152.0,66151.0,0.07790801]
[1729701391438,0.23244044,66152.0,66151.0,0.07790801]
[1729701393245,0.26949494,66152.0,66151.0,0.07790801]
[1729701394143,0.26949478,66152.0,66151.0,0.24790801]
[1729701394351,0.03705434,66152.0,66151.0,0.24790801]
[1729701394647,0.03705434,66152.0,66151.0,0.70142801]
[1729701394852,0.03705434,66152.0,66151.0,0.075641]
[1729701395048,0.03705434,66152.0,66151.0,0.657841]
[1729701395353,0.03705434,66152.0,66151.0,0.245641]
[1729701395644,0.03705434,66152.0,66151.0,0.699161]
[1729701395850,0.03705434,66152.0,66151.0,0.767961]
[1729701396051,0.0641,66161.0,66160.0,0.075631]
[1729701396552,0.24553298,66161.0,66160.0,0.075631]
[1729701396751,0.11054044,66161.0,66160.0,0.075631]
[1729701397134,0.13499254,66162.0,66161.0,0.075629]
[1729701397339,0.075621,66170.0,66169.0,0.075619]
[1729701397540,0.12205873,66170.0,66169.0,0.245619]
[1729701397739,0.28869917,66170.0,66169.0,0.245619]
[1729701398140,0.075621,66168.0,66167.0,0.075623]
[1729701398343,0.075631,66161.0,66160.0,0.075628]
[1729701398551,0.12207128,66161.0,66160.0,0.075628]
[1729701398756,0.28871172,66161.0,66160.0,0.075628]
[1729701399051,0.16664044,66161.0,66160.0,0.33126644]
[1729701399359,0.13541075,66162.0,66161.0,0.075629]
[1729701399656,0.13541075,66162.0,66161.0,0.33126431]
[1729701400440,0.13541075,66162.0,66161.0,0.4944154]
[1729701400643,0.13541075,66162.0,66161.0,0.6001996]
[1729701400644,0.37767919,66162.0,66161.0,0.6001996]
[1729701400944,0.37767919,66162.0,66161.0,0.33126431]
[1729701401652,0.21103875,66162.0,66161.0,0.49434203]
[1729701402353,0.21103875,66162.0,66161.0,0.66434203]
[1729701403356,0.21103875,66162.0,66161.0,0.66433841]
[1729701403559,0.13541075,66162.0,66161.0,0.66433841]
[1729701403854,0.13541075,66162.0,66161.0,0.50125474]
[1729701405459,0.37767919,66162.0,66161.0,0.50125474]
[1729701405639,0.37767919,66162.0,66161.0,0.42562574]
[1729701405840,0.37767919,66162.0,66161.0,0.25562574]
[1729701406038,0.37767919,66162.0,66161.0,0.42562574]
[1729701406244,0.37767919,66162.0,66161.0,0.15012574]
[1729701406441,0.24227344,66158.0,66152.0,0.10572825]
[1729701406763,0.07564,66152.0,66151.0,0.0054]
[1729701407056,0.27933832,66152.0,66151.0,0.081041]
[1729701407243,0.24228044,66152.0,66151.0,0.081041]
[1729701407448,0.24228044,66152.0,66151.0,0.09986425]
[1729701407642,0.27933899,66152.0,66151.0,0.09986425]
[1729701408242,0.27933899,66152.0,66151.0,0.02422325]
[1729701409158,0.27933899,66152.0,66129.0,0.17]
[1729701409159,0.53621169,66152.0,66129.0,0.17]
[1729701409351,0.075662,66134.0,66133.0,0.075659]
[1729701409545,0.075669,66129.0,66128.0,0.075667]
[1729701410064,0.075669,66129.0,66128.0,0.245667]
[1729701410065,0.16664044,66129.0,66128.0,0.245667]
[1729701410354,0.24230644,66129.0,66128.0,0.245667]
[1729701411346,0.16664044,66129.0,66128.0,0.245667]
[1729701413848,0.075662,66133.0,66128.0,0.245667]
[1729701414055,0.13539629,66147.0,66131.0,0.34]
[1729701414257,0.06901373,66147.0,66146.0,0.415647]
[1729701414448,0.06901373,66147.0,66146.0,0.547167]
[1729701414649,0.06901373,66147.0,66146.0,0.81226136]
[1729701414857,0.06901373,66147.0,66146.0,0.536735]
[1729701415957,0.06901373,66147.0,66146.0,0.706735]
[1729701416148,0.06901373,66147.0,66146.0,0.536735]
[1729701416356,0.06901373,66147.0,66146.0,0.54405541]
[1729701416552,0.06901373,66147.0,66146.0,0.67557541]
[1729701416756,0.06901373,66147.0,66146.0,0.78097987]
[1729701417064,0.06901373,66147.0,66146.0,0.51600741]
[1729701417260,0.06901373,66147.0,66146.0,0.38448741]
[1729701417462,0.06901373,66147.0,66146.0,0.40376817]
[1729701417662,0.07564,66153.0,66146.0,0.40376817]
[1729701417663,0.07564,66153.0,66152.0,0.07564]
[1729701417848,0.07564,66153.0,66152.0,0.21448041]
[1729701418048,0.17,66161.0,66152.0,0.13884041]
[1729701418354,0.075649,66144.0,66133.0,0.10540446]
[1729701418552,0.245655,66139.0,66138.0,0.07792269]
[1729701418949,0.075655,66139.0,66138.0,0.00226769]
[1729701419263,0.075655,66139.0,66138.0,0.07792369]
[1729701420060,0.0663,66143.0,66138.0,0.00226769]
[1729701420264,0.075651,66142.0,66141.0,0.075651]
[1729701420766,0.041951,66143.0,66141.0,0.075651]
[1729701420962,0.041951,66143.0,66142.0,0.075651]
[1729701421355,0.041951,66143.0,66142.0,0.19098724]
[1729701421667,0.075644,66149.0,66148.0,0.075644]
[1729701421850,0.075643,66152.0,66151.0,0.075638]
[1729701422053,0.14193578,66152.0,66151.0,0.075638]
[1729701422656,0.075647,66148.0,66147.0,0.075645]
[1729701422855,0.14193978,66148.0,66147.0,0.075645]
[1729701423066,0.10488197,66148.0,66147.0,0.075645]
[1729701423364,0.14194425,66148.0,66147.0,0.075645]
[1729701424263,0.075646,66147.0,66144.0,0.075649]
[1729701424463,0.06629725,66146.0,66141.0,0.17]
[1729701424667,0.075655,66140.0,66139.0,0.075654]
[1729701424864,0.075655,66139.0,66138.0,0.00226769]
[1729701425168,0.14195225,66139.0,66138.0,0.00226769]
[1729701425368,0.35841314,66139.0,66138.0,0.00226769]
[1729701426767,0.35841387,66139.0,66138.0,0.00226769]
[1729701427873,0.37704639,66139.0,66138.0,0.00226769]
[1729701428078,0.34781142,66139.0,66138.0,0.00226769]
[1729701428372,0.49804656,66139.0,66128.0,0.075667]
[1729701428578,0.075666,66129.0,66128.0,0.075667]
[1729701428762,0.11272828,66129.0,66128.0,0.075667]
[1729701428963,0.11272828,66129.0,66126.0,0.17]
[1729701428964,0.075671,66127.0,66126.0,0.075669]
[1729701429165,0.20706228,66129.0,66118.0,0.17]
[1729701429166,0.17,66129.0,66118.0,0.17]
[1729701429472,0.17,66133.0,66124.0,0.17]
[1729701429680,0.075662,66133.0,66132.0,0.245662]
[1729701430003,0.075662,66133.0,66125.0,0.17]
[1729701430165,0.075669,66129.0,66128.0,0.075667]
[1729701431777,0.075669,66129.0,66128.0,0.19102794]
[1729701431963,0.075669,66129.0,66128.0,0.075667]
[1729701432367,0.075669,66129.0,66128.0,0.19102798]
[1729701432863,0.245669,66129.0,66125.0,0.075671]
[1729701433068,0.075668,66127.0,66126.0,0.19103046]
[1729701434672,0.075668,66127.0,66126.0,0.11536146]
[1729701435083,0.075668,66127.0,66123.0,0.075672]
[1729701435084,0.075672,66124.0,66123.0,0.075672]
[1729701435374,0.075672,66124.0,66123.0,0.19104159]
[1729701436069,0.075667,66130.0,66129.0,0.075665]
[1729701436268,0.075667,66130.0,66129.0,0.19103335]
[1729701437188,0.075667,66130.0,66129.0,0.11536721]
[1729701437497,0.075667,66130.0,66129.0,0.19103321]
[1729701437864,0.13493472,66134.0,66133.0,0.075662]
[1729701438079,0.13493472,66134.0,66133.0,0.245662]
[1729701439481,0.13493472,66134.0,66133.0,0.075662]
[1729701439482,0.21059472,66134.0,66133.0,0.075662]
[1729701439692,0.07568,66119.0,66118.0,0.075678]
[1729701439985,0.075675,66123.0,66122.0,0.075673]
[1729701442902,0.07567,66127.0,66126.0,0.075667]
[1729701443708,0.075673,66123.0,66122.0,0.075673]
[1729701445007,0.07186926,66133.0,66123.0,0.075673]
[1729701445210,0.075663,66132.0,66131.0,0.335663]
[1729701445409,0.075667,66129.0,66128.0,0.075665]
[1729701447116,0.075671,66126.0,66125.0,0.07567]
[1729701451520,0.00226926,66133.0,66121.0,0.26]
[1729701451713,0.11277984,66126.0,66124.0,0.26]
[1729701452111,0.11277984,66126.0,66125.0,0.0651]
[1729701452307,0.1504308,66127.0,66126.0,0.07567]
[1729701452508,0.26,66166.0,66142.0,0.075651]
[1729701452708,0.0669,66152.0,66151.0,0.075641]
[1729701453016,0.075632,66160.0,66157.0,0.075634]
[1729701453218,0.0669,66169.0,66157.0,0.075634]
[1729701453412,0.075632,66159.0,66157.0,0.075634]
[1729701453613,0.075629,66162.0,66157.0,0.075634]
[1729701453813,0.075631,66160.0,66157.0,0.075634]
[1729701454616,0.26,66164.0,66157.0,0.075634]
[1729701454819,0.3269,66169.0,66157.0,0.075634]
[1729701455214,0.0669,66169.0,66168.0,0.075621]
[1729701455413,0.075623,66167.0,66166.0,0.075624]
[1729701456422,0.3269,66169.0,66156.0,0.075635]
[1729701456615,0.26,66165.0,66155.0,0.075636]
[1729701456820,0.26,66160.0,66154.0,0.075637]
[1729701457016,0.075635,66157.0,66156.0,0.075632]
[1729701457522,0.26,66160.0,66151.0,0.04536135]
[1729701457718,0.45566,66169.0,66159.0,0.075632]
[1729701458122,0.45566,66169.0,66150.0,0.26]
[1729701458123,0.26,66164.0,66150.0,0.26]
[1729701458427,0.26,66164.0,66154.0,0.075637]
[1729701458628,0.075636,66155.0,66154.0,0.075637]
[1729701458815,0.07563,66161.0,66160.0,0.07563]
[1729701459015,0.26,66164.0,66150.0,0.26]
[1729701459319,0.26,66163.0,66147.0,0.26]
[1729701459512,0.075634,66157.0,66148.0,0.075644]
[1729701459716,0.26,66163.0,66154.0,0.075636]
[1729701460015,0.26,66163.0,66147.0,0.26]
[1729701460218,0.075642,66151.0,66150.0,0.075642]
[1729701460823,0.067,66157.0,66139.0,0.26]